bitfinex/quotes_ETHUSD_20241013
["timestamp","ask_amount","ask_price","bid_price","bid_amount"]
[1728851347845,0.0122043,2458.9,2458.8,7.73869968]
[1728851348129,0.0122043,2458.9,2458.8,7.73870112]
[1728851348534,0.0122043,2458.9,2458.8,7.69267633]
[1728851348748,0.0122043,2458.9,2458.8,7.61135043]
[1728851348955,0.0122043,2458.9,2458.8,9.24057395]
[1728851349242,0.0122043,2458.9,2458.8,10.0945487]
[1728851349446,0.0122043,2458.9,2458.8,9.24057395]
[1728851350551,0.0122043,2458.9,2458.8,11.36688765]
[1728851351148,0.0122043,2458.9,2458.8,10.4470531]
[1728851351354,0.0122043,2458.9,2458.8,11.36661857]
[1728851351647,0.0122043,2458.9,2458.8,10.87909575]
[1728851352307,0.0122043,2458.9,2458.8,11.36661857]
[1728851352513,0.0122043,2458.9,2458.8,10.87909575]
[1728851353142,0.0122043,2458.9,2458.8,11.28873105]
[1728851354215,0.0122043,2458.9,2458.8,11.2862561]
[1728851354620,0.0122043,2458.9,2458.8,10.43228135]
[1728851356146,0.0122043,2458.9,2458.8,10.12757528]
[1728851356348,0.0122043,2458.9,2458.8,10.43197982]
[1728851358184,0.0122043,2458.9,2458.8,10.30464324]
[1728851359016,0.0122043,2458.9,2458.8,10.30350839]
[1728851360354,0.0122043,2458.9,2458.8,9.99910385]
[1728851360661,0.0122043,2458.9,2458.8,10.30335457]
[1728851361380,0.0122043,2458.9,2458.8,8.94242728]
[1728851361585,0.0122043,2458.9,2458.8,9.24666516]
[1728851361888,0.0122043,2458.9,2458.8,10.30316334]
[1728851363377,0.0122043,2458.9,2458.8,13.30316334]
[1728851363586,0.0122043,2458.9,2458.8,11.54221411]
[1728851363875,0.0122043,2458.9,2458.8,13.73435605]
[1728851364083,0.0122043,2458.9,2458.8,13.43011817]
[1728851365547,0.0122043,2458.9,2458.8,14.28409292]
[1728851365881,0.0122043,2458.9,2458.8,13.43011817]
[1728851367378,0.0122043,2458.9,2458.8,13.3027834]
[1728851367572,0.0122043,2458.9,2458.8,13.43006696]
[1728851368292,0.0122043,2458.9,2458.8,13.42980019]
[1728851369554,0.0122043,2458.9,2458.8,14.28377494]
[1728851370292,0.0122043,2458.9,2458.8,13.42980019]
[1728851370458,0.0122043,2458.9,2458.8,14.28377494]
[1728851371071,0.0122043,2458.9,2458.8,13.42980019]
[1728851371274,0.0122043,2458.9,2458.8,13.42984356]
[1728851371674,0.0122043,2458.9,2458.8,13.42983903]
[1728851372399,0.0122043,2458.9,2458.8,14.28381378]
[1728851372985,0.0122043,2458.9,2458.8,12.52347095]
[1728851373180,0.0122043,2458.9,2458.8,14.28432403]
[1728851374874,0.0122043,2458.9,2458.8,13.98013758]
[1728851375074,0.0122043,2458.9,2458.8,14.28443536]
[1728851375374,0.0122043,2458.9,2458.8,14.77138023]
[1728851375702,0.0122043,2458.9,2458.8,14.77210925]
[1728851377084,0.07076796,2459.3,2459.2,4.61636]
[1728851377259,0.07076796,2459.3,2459.2,4.62449157]
[1728851377458,0.07076796,2459.3,2459.2,4.66633843]
[1728851379264,0.82226796,2459.3,2459.2,4.66633843]
[1728851379686,0.83446879,2459.3,2459.2,4.66633843]
[1728851385466,0.83446879,2459.3,2459.2,5.3724056]
[1728851387102,0.08296879,2459.3,2459.2,7.94172702]
[1728851387303,0.08296879,2459.3,2459.2,6.17653143]
[1728851387541,0.08296879,2459.3,2459.2,7.94165126]
[1728851387691,0.08296879,2459.3,2459.2,8.79396067]
[1728851388206,0.01220083,2459.3,2459.2,8.79396067]
[1728851389908,0.01220083,2459.3,2459.2,8.48900867]
[1728851390104,0.01220083,2459.3,2459.2,8.79408016]
[1728851390465,0.01220083,2459.3,2459.2,9.28228004]
[1728851390661,0.01220083,2459.3,2459.2,12.33861427]
[1728851390905,0.01220083,2459.3,2459.2,14.04656377]
[1728851391315,0.01220083,2459.3,2459.2,12.33861427]
[1728851391816,0.01220083,2459.3,2459.2,14.4733019]
[1728851392021,0.01220083,2459.3,2459.2,14.47540321]
[1728851392678,0.01220083,2459.3,2459.2,12.33956536]
[1728851393596,0.01220083,2459.3,2459.2,12.33952891]
[1728851393926,0.01220083,2459.3,2459.2,14.04797928]
[1728851394091,0.01220083,2459.3,2459.2,14.35295971]
[1728851394275,0.01220083,2459.3,2459.2,14.0478968]
[1728851394480,0.01220083,2459.3,2459.2,14.04781744]
[1728851395212,0.01220083,2459.3,2459.2,12.33943785]
[1728851395517,0.01220083,2459.3,2459.2,14.04780615]
[1728851396797,0.01220083,2459.3,2459.2,14.04719749]
[1728851398998,0.01220083,2459.3,2459.2,17.04719749]
[1728851400019,0.01220083,2459.3,2459.2,15.33882919]
[1728851400190,0.01220083,2459.3,2459.2,17.47393094]
[1728851400390,0.8321473,2459.9,2459.8,4.61537]
[1728851400725,0.0707473,2459.9,2459.8,7.69943236]
[1728851401085,0.0707473,2459.9,2459.8,8.00433996]
[1728851401383,0.7614,2460.1,2460.0,4.61504]
[1728851401593,0.7614,2460.1,2460.0,4.62317157]
[1728851402570,0.7614,2460.1,2460.0,4.7044644]
[1728851402709,0.7614,2460.1,2460.0,4.70446432]
[1728851402918,0.7614,2460.1,2460.0,4.62317157]
[1728851403445,0.89893583,2460.3,2460.2,4.06471]
[1728851403586,0.89893583,2460.3,2460.2,4.62284157]
[1728851403787,0.91113467,2460.3,2460.2,4.62284157]
[1728851406094,0.08293467,2460.3,2460.2,6.1247174]
[1728851406343,0.08293467,2460.3,2460.2,5.84252891]
[1728851406844,0.08293467,2460.3,2460.2,7.34440474]
[1728851407032,0.08293467,2460.3,2460.2,5.84252891]
[1728851407562,0.08293467,2460.3,2460.2,7.34440474]
[1728851407755,0.08293467,2460.3,2460.2,7.42568589]
[1728851408753,0.08293467,2460.3,2460.2,7.34440474]
[1728851409045,0.08293467,2460.3,2460.2,5.84252891]
[1728851409248,0.08293467,2460.3,2460.2,7.34440474]
[1728851409450,0.08293467,2460.3,2460.2,5.84252891]
[1728851409749,0.08293467,2460.3,2460.2,7.34440474]
[1728851410092,0.08293467,2460.3,2460.2,7.42568601]
[1728851412125,0.08293467,2460.3,2460.2,7.34440474]
[1728851412446,0.08293467,2460.3,2460.2,7.42568596]
[1728851415444,0.08293467,2460.3,2460.2,7.34440474]
[1728851417146,0.08293467,2460.3,2460.2,7.4256852]
[1728851417452,0.08293467,2460.3,2460.2,8.2041852]
[1728851417711,0.08293467,2460.3,2460.2,8.16292389]
[1728851418009,0.01219884,2460.3,2460.2,8.16292389]
[1728851418592,0.01219884,2460.3,2460.2,11.16292389]
[1728851424509,0.01219884,2460.3,2460.2,8.88254806]
[1728851424728,0.77789884,2460.3,2460.2,8.88254806]
[1728851425381,0.77789884,2460.3,2460.2,10.38442389]
[1728851426320,0.77789884,2460.3,2460.2,8.88254806]
[1728851427037,0.77789884,2460.3,2460.2,10.38442389]
[1728851427184,0.01219884,2460.3,2460.2,10.38442389]
[1728851433912,0.01219884,2460.3,2460.2,8.88254806]
[1728851437646,0.01219884,2460.3,2460.2,9.58676176]
[1728851439541,0.01219884,2460.3,2460.2,12.14517405]
[1728851440533,0.01219884,2460.3,2460.2,12.44945083]
[1728851440746,0.01219884,2460.3,2460.2,12.14517405]
[1728851441047,0.01219884,2460.3,2460.2,12.44945271]
[1728851441407,0.01219884,2460.3,2460.2,12.5767214]
[1728851442238,0.01219884,2460.3,2460.2,12.57735384]
[1728851443614,0.01219884,2460.3,2460.2,13.43116356]
[1728851445551,0.01219884,2460.3,2460.2,13.9190181]
[1728851447533,0.01219884,2460.3,2460.2,14.12265082]
[1728851447859,0.01219884,2460.3,2460.2,14.12210659]
[1728851448213,0.01219884,2460.3,2460.2,15.96083193]
[1728851451760,0.01219884,2460.3,2460.2,17.21083679]
[1728851452552,0.07073058,2460.5,2460.2,14.68011735]
[1728851452754,0.7905,2461.0,2460.9,0.55]
[1728851452918,0.7905,2461.0,2460.9,0.55813157]
[1728851453115,0.7905,2461.0,2460.9,0.597946]
[1728851453861,0.7905,2461.0,2460.9,6.16337183]
[1728851454061,0.0707144,2461.1,2460.9,4.661496]
[1728851455355,0.012,2461.0,2460.9,4.661496]
[1728851455652,0.012,2461.0,2460.9,5.36679276]
[1728851455816,0.012,2461.0,2460.9,5.36679261]
[1728851456019,0.012,2461.0,2460.9,6.54537846]
[1728851456259,0.012,2461.0,2460.9,6.54537825]
[1728851456556,0.012,2461.0,2460.9,5.84008185]
[1728851456963,0.012,2461.0,2460.9,6.5452324]
[1728851457318,0.012,2461.0,2460.9,5.84008185]
[1728851459134,0.012,2461.0,2460.9,1.77653185]
[1728851459339,0.012,2461.0,2460.9,0.597946]
[1728851463138,0.012,2461.0,2460.9,4.661496]
[1728851463339,0.012,2461.0,2460.9,0.597946]
[1728851464237,0.012,2461.0,2460.9,4.661496]
[1728851465954,0.012,2461.0,2460.9,0.597946]
[1728851469135,0.7988,2461.0,2460.9,0.597946]
[1728851475119,0.7988,2461.0,2460.9,0.00813157]
[1728851476919,4.86218,2461.0,2460.9,0.00813157]
[1728851477107,0.7988,2461.0,2460.9,0.00813157]
[1728851484314,0.012,2461.0,2460.9,0.00813157]
[1728851490509,0.012,2461.0,2460.9,0.55813157]
[1728851493210,0.012,2461.0,2460.9,0.00813157]
[1728851493409,7.28684727,2461.0,2460.9,0.00813157]
[1728851503139,4.88328,2461.0,2460.9,0.00813157]
[1728851503347,6.38515583,2461.0,2460.9,0.00813157]
[1728851505855,4.88328,2461.0,2460.9,0.00813157]
[1728851506221,4.07538,2461.0,2460.9,0.00813157]
[1728851506528,5.57725583,2461.0,2460.9,0.00813157]
[1728851506932,4.07538,2461.0,2460.9,0.00813157]
[1728851507354,0.012,2461.0,2460.9,0.00813157]
[1728851507518,0.012,2461.0,2460.9,1.09756473]
[1728851508718,0.012,2461.0,2460.9,1.85666473]
[1728851509144,0.012,2461.0,2460.9,5.92021473]
[1728851511025,0.012,2461.0,2460.9,1.85666473]
[1728851514093,0.012,2461.0,2460.9,5.92021473]
[1728851514294,0.012,2461.0,2460.9,6.00147686]
[1728851514590,0.012,2461.0,2460.9,5.92021473]
[1728851516465,0.012,2461.0,2460.9,1.85666473]
[1728851519006,0.012,2461.0,2460.9,1.09756473]
[1728851521290,0.012,2461.0,2460.9,5.16111473]
[1728851521468,0.012,2461.0,2460.9,1.09756473]
[1728851526056,0.012,2461.0,2460.9,5.2423772]
[1728851527858,0.012,2461.0,2460.9,5.16111473]
[1728851528794,0.012,2461.0,2460.9,5.24237726]
[1728851529753,0.012,2461.0,2460.9,1.17882726]
[1728851529955,0.012,2461.0,2460.9,1.09756473]
[1728851535591,0.8242,2461.0,2460.9,0.00813157]
[1728851535773,0.012,2461.0,2460.9,0.00813157]
[1728851536073,0.012,2461.0,2460.9,0.55813157]
[1728851542610,0.012,2461.0,2460.9,4.62168157]
[1728851544664,0.012,2461.0,2460.9,0.55813157]
[1728851546877,0.012,2461.0,2460.9,4.62168157]
[1728851547077,0.012,2461.0,2460.9,5.72878978]
[1728851547317,0.012,2461.0,2460.9,7.18545354]
[1728851547612,0.012,2461.0,2460.9,9.95262148]
[1728851547850,0.012,2461.0,2460.9,9.87136457]
[1728851548110,0.012,2461.0,2460.9,9.74412298]
[1728851548275,0.012,2461.0,2460.9,10.72494172]
[1728851548610,0.012,2461.0,2460.9,9.87136167]
[1728851549272,0.012,2461.0,2460.9,10.72494172]
[1728851552396,0.012,2461.0,2460.9,10.92852278]
[1728851553297,0.012,2461.0,2460.9,10.92852326]
[1728851555043,0.012,2461.0,2460.9,3.30030768]
[1728851555323,0.8008,2461.0,2460.9,1.26269533]
[1728851555526,0.8008,2461.0,2460.9,1.26332137]
[1728851555729,0.8008,2461.0,2460.9,0.55813157]
[1728851555927,0.8008,2461.0,2460.9,1.26333915]
[1728851556788,7.00265441,2461.0,2460.9,0.71333915]
[1728851557038,7.00265441,2461.0,2460.9,0.00813157]
[1728851568163,7.0733817,2461.0,2460.9,0.00813157]
[1728851577389,4.14610729,2461.0,2460.9,0.00813157]
[1728851577573,0.08272729,2461.0,2460.9,0.00813157]
[1728851578690,4.14610729,2461.0,2460.9,0.00813157]
[1728851579294,0.08272729,2461.0,2460.9,0.00813157]
[1728851579881,0.08272729,2461.0,2460.9,0.55813157]
[1728851580755,4.14610729,2461.0,2460.9,0.55813157]
[1728851581201,4.14610729,2461.0,2460.9,0.00813157]
[1728851582586,0.08272729,2461.0,2460.9,0.00813157]
[1728851582969,4.14610729,2461.0,2460.9,0.00813157]
[1728851589487,0.08272729,2461.0,2460.9,0.00813157]
[1728851590786,0.08272729,2461.0,2460.9,0.82753157]
[1728851590990,0.08272729,2461.0,2460.9,1.37753157]
[1728851599714,0.08272729,2461.0,2460.9,1.92166673]
[1728851599932,0.08272729,2461.0,2460.9,5.98521673]
[1728851600651,0.08272729,2461.0,2460.9,2.62705489]
[1728851601407,0.012,2461.0,2460.9,1.92166673]
[1728851601640,0.012,2461.0,2460.9,2.62702358]
[1728851602024,0.012,2461.0,2460.9,2.62702582]
[1728851602447,0.012,2461.0,2460.9,2.75427606]
[1728851603041,0.012,2461.0,2460.9,2.7541908]
[1728851603259,0.012,2461.0,2460.9,2.62694056]
[1728851604314,0.012,2461.0,2460.9,1.92166673]
[1728851604618,0.012,2461.0,2460.9,2.6269883]
[1728851605350,0.012,2461.0,2460.9,1.92166673]
[1728851605736,0.012,2461.0,2460.9,2.62695349]
[1728851606127,0.012,2461.0,2460.9,1.92166673]
[1728851607643,0.012,2461.0,2460.9,2.62687529]
[1728851612328,0.012,2461.0,2460.9,6.69042529]
[1728851612532,0.012,2461.0,2460.9,8.19226359]
[1728851612849,0.012,2461.0,2460.9,6.69038776]
[1728851616035,0.012,2461.0,2460.9,5.98521673]
[1728851616461,0.012,2461.0,2460.9,6.6903527]
[1728851616979,0.012,2461.0,2460.9,5.98521673]
[1728851617869,0.012,2461.0,2460.9,2.62681814]
[1728851618078,0.012,2461.0,2460.9,1.37753157]
[1728851618285,0.012,2461.0,2460.9,2.08268723]
[1728851618588,0.012,2461.0,2460.9,2.08269726]
[1728851618799,0.012,2461.0,2460.9,1.37753157]
[1728851619084,0.012,2461.0,2460.9,2.08269694]
[1728851620188,0.012,2461.0,2460.9,6.14624694]
[1728851620344,0.012,2461.0,2460.9,7.40280122]
[1728851620761,0.012,2461.0,2460.9,8.90467705]
[1728851620961,0.012,2461.0,2460.9,9.2092509]
[1728851621251,0.012,2461.0,2460.9,10.39426325]
[1728851621473,0.012,2461.0,2460.9,10.26704623]
[1728851621871,0.012,2461.0,2460.9,11.24767821]
[1728851622384,0.012,2461.0,2460.9,10.39409816]
[1728851622585,0.012,2461.0,2460.9,11.24767821]
[1728851624405,0.012,2461.0,2460.9,10.39409816]
[1728851624561,0.012,2461.0,2460.9,11.24767821]
[1728851626687,0.012,2461.0,2460.9,11.24722101]
[1728851626965,0.012,2461.0,2460.9,10.94264135]
[1728851627382,0.012,2461.0,2460.9,11.24711122]
[1728851630678,0.012,2461.0,2460.9,11.11987313]
[1728851630970,0.012,2461.0,2460.9,10.39350704]
[1728851631507,0.012,2461.0,2460.9,10.39340768]
[1728851632480,0.012,2461.0,2460.9,11.24698773]
[1728851633273,0.012,2461.0,2460.9,10.39340768]
[1728851633498,0.012,2461.0,2460.9,11.24698773]
[1728851634411,0.012,2461.0,2460.9,10.8153039]
[1728851634576,0.012,2461.0,2460.9,11.24700767]
[1728851636070,0.012,2461.0,2460.9,11.24718528]
[1728851639083,0.012,2461.0,2460.9,11.24724981]
[1728851640587,0.012,2461.0,2460.9,9.48486003]
[1728851640926,0.012,2461.0,2460.9,11.24763926]
[1728851641118,0.012,2461.0,2460.9,11.24769946]
[1728851642415,0.012,2461.0,2460.9,11.45128005]
[1728851642619,0.012,2461.0,2460.9,11.24769946]
[1728851643230,0.012,2461.0,2460.9,11.45128141]
[1728851643731,0.012,2461.0,2460.9,10.63188141]
[1728851643888,0.012,2461.0,2460.9,6.8162893]
[1728851644084,0.012,2461.0,2460.9,9.17174518]
[1728851644522,0.012,2461.0,2460.9,9.17191869]
[1728851644729,0.012,2461.0,2460.9,8.74012251]
[1728851644900,0.012,2461.0,2460.9,8.86736382]
[1728851645096,0.012,2461.0,2460.9,9.17195228]
[1728851645527,0.012,2461.0,2460.9,9.37553918]
[1728851646031,0.012,2461.0,2460.9,11.0948372]
[1728851648331,0.012,2461.0,2460.9,7.67007645]
[1728851648537,0.012,2461.0,2460.9,9.07094862]
[1728851650047,0.012,2461.0,2460.9,9.5585732]
[1728851650405,0.012,2461.0,2460.9,8.05669737]
[1728851650804,0.012,2461.0,2460.9,7.72587126]
[1728851651147,0.012,2461.0,2460.9,8.05669893]
[1728851651318,0.012,2461.0,2460.9,7.20311888]
[1728851651816,0.012,2461.0,2460.9,8.05657126]
[1728851652325,0.012,2461.0,2460.9,7.20330934]
[1728851653418,0.012,2461.0,2460.9,6.99972249]
[1728851653724,0.012,2461.0,2460.9,9.56462959]
[1728851653929,0.012,2461.0,2460.9,6.71549285]
[1728851654242,0.012,2461.0,2460.9,6.38641185]
[1728851654448,0.012,2461.0,2460.9,1.77286185]
[1728851654660,0.8249,2461.0,2460.9,1.77286185]
[1728851654817,1.87022458,2461.0,2460.9,0.00813157]
[1728851655158,0.89562385,2461.0,2460.9,0.00813157]
[1728851655358,0.8249,2461.0,2460.9,0.00813157]
[1728851655525,4.88828,2461.0,2460.9,0.00813157]
[1728851655726,0.8249,2461.0,2460.9,0.00813157]
[1728851659363,0.012,2461.0,2460.9,0.55813157]
[1728851661731,0.012,2461.0,2460.9,4.62168157]
[1728851667747,0.012,2461.0,2460.9,5.3273543]
[1728851668088,0.012,2461.0,2460.9,4.62168157]
[1728851668266,0.012,2461.0,2460.9,0.55813157]
[1728851668433,0.012,2461.0,2460.9,1.26380509]
[1728851670890,0.012,2461.0,2460.9,0.55813157]
[1728851672053,0.012,2461.0,2460.9,0.00813157]
[1728851672386,0.81,2461.0,2460.9,0.00813157]
[1728851675897,0.88071937,2461.0,2460.9,0.00813157]
[1728851680411,5.4178571,2461.0,2460.9,0.00813157]
[1728851680708,4.94409937,2461.0,2460.9,0.00813157]
[1728851680893,6.4459752,2461.0,2460.9,0.00813157]
[1728851686587,6.4459752,2461.0,2460.9,0.00813157]
[1728851689796,9.4459752,2461.0,2460.9,0.00813157]
[1728851700642,11.57763142,2461.0,2460.9,0.00813157]
[1728851700843,11.41604767,2461.0,2460.9,0.00813157]
[1728851705510,13.54511561,2461.0,2460.9,0.00813157]
[1728851707547,11.41604767,2461.0,2460.9,0.00813157]
[1728851719644,13.54526838,2461.0,2460.9,0.00813157]
[1728851723819,8.6479752,2461.0,2460.9,0.00813157]
[1728851727347,10.77870992,2461.0,2460.9,0.00813157]
[1728851728285,10.78078644,2461.0,2460.9,0.00813157]
[1728851730275,11.57798644,2461.0,2460.9,0.00813157]
[1728851730975,14.01007991,2461.0,2460.9,0.00813157]
[1728851731302,13.55663098,2461.0,2460.9,0.00813157]
[1728851731646,16.54256672,2461.0,2460.9,0.00813157]
[1728851732369,13.55663098,2461.0,2460.9,0.00813157]
[1728851732575,16.54052563,2461.0,2460.9,0.00813157]
[1728851732966,13.55663098,2461.0,2460.9,0.00813157]
[1728851733166,16.5400655,2461.0,2460.9,0.00813157]
[1728851733499,16.54004214,2461.0,2460.9,0.00813157]
[1728851734048,13.55663098,2461.0,2460.9,0.00813157]
[1728851735758,16.53994144,2461.0,2460.9,0.00813157]
[1728851737378,13.55663098,2461.0,2460.9,0.00813157]
[1728851742456,13.05297559,2461.0,2460.9,0.00813157]
[1728851743460,8.56658583,2460.2,2460.1,0.7865]
[1728851743660,4.06573,2459.6,2459.4,0.55]
[1728851743881,0.012,2459.5,2459.3,0.7872]
[1728851744107,0.012,2459.5,2459.4,1.3372]
[1728851745669,0.012,2459.5,2459.4,0.7872]
[1728851745907,0.012,2459.5,2459.4,0.79532694]
[1728851746409,4.07786,2459.5,2459.4,0.79532694]
[1728851748381,5.57973583,2459.5,2459.4,0.79532694]
[1728851750899,0.012,2459.5,2459.4,1.34532694]
[1728851751206,0.012,2459.5,2459.4,2.03668322]
[1728851751608,0.012,2459.5,2459.4,7.60458905]
[1728851751771,0.012,2459.5,2459.4,2.03668322]
[1728851755070,0.012,2459.5,2459.4,6.10271322]
[1728851756213,0.012,2459.5,2459.4,6.21061746]
[1728851760388,0.012,2459.5,2459.4,7.71249329]
[1728851761435,0.012,2459.5,2459.4,6.21061746]
[1728851763544,0.012,2459.5,2459.4,7.79380377]
[1728851763682,0.012,2459.5,2459.4,7.71249329]
[1728851767310,0.012,2459.5,2459.4,6.21061746]
[1728851767726,0.012,2459.5,2459.4,2.14458746]
[1728851768425,0.012,2459.5,2459.4,1.45323118]
[1728851769901,4.07786,2459.5,2459.4,0.90323118]
[1728851770107,4.07786,2459.5,2459.4,0.11603118]
[1728851770402,5.57973583,2459.5,2459.4,0.11603118]
[1728851770721,5.12479058,2459.5,2459.4,0.11603118]
[1728851771426,4.07786,2459.5,2459.4,0.11603118]
[1728851772742,4.14862275,2459.5,2459.4,0.11603118]
[1728851777030,0.08276275,2459.5,2459.4,0.94453118]
[1728851778675,0.012,2459.5,2459.4,0.94453118]
[1728851779347,4.07786,2459.5,2459.4,0.94453118]
[1728851783044,0.012,2459.5,2459.4,0.94453118]
[1728851783641,4.07786,2459.5,2459.4,0.94453118]
[1728851786945,0.012,2459.5,2459.4,0.94453118]
[1728851787795,0.012,2459.5,2459.4,1.49453118]
[1728851795798,0.012,2459.5,2459.4,8.41019129]
[1728851795999,0.012,2459.5,2459.4,10.45030436]
[1728851796212,0.012,2459.5,2459.4,8.78702125]
[1728851796519,0.012,2459.5,2459.4,11.14305922]
[1728851796693,0.012,2459.5,2459.4,10.28889708]
[1728851797136,0.012,2459.5,2459.4,8.52300966]
[1728851797290,0.012,2459.5,2459.4,10.28876856]
[1728851797486,0.012,2459.5,2459.4,11.1429078]
[1728851797890,0.012,2459.5,2459.4,11.1428226]
[1728851799128,0.012,2459.5,2459.4,10.28868336]
[1728851799502,0.012,2459.5,2459.4,11.14272858]
[1728851800096,0.012,2459.5,2459.4,10.93900803]
[1728851800875,0.012,2459.5,2459.4,15.98065026]
[1728851801901,0.012,2459.5,2459.4,15.98009926]
[1728851804194,0.012,2459.5,2459.4,15.98008855]
[1728851804506,0.012,2459.5,2459.4,15.97993999]
[1728851805196,0.07075414,2460.0,2459.9,5.4334]
[1728851805392,0.07075414,2460.0,2459.9,6.48869169]
[1728851805592,4.06448,2460.4,2459.9,6.48869169]
[1728851805792,4.06448,2460.4,2460.3,0.00812694]
[1728851806395,5.56635583,2460.4,2460.3,0.00812694]
[1728851806595,4.06448,2460.4,2460.3,0.00812694]
[1728851806828,4.06448,2460.4,2460.3,0.10541769]
[1728851807429,5.56635583,2460.4,2460.3,0.10541769]
[1728851808040,4.06448,2460.4,2460.3,0.10541769]
[1728851808446,5.57855368,2460.4,2460.3,0.00812694]
[1728851808854,5.57855368,2460.4,2460.3,0.10541769]
[1728851811778,7.40291396,2460.4,2460.3,0.10541769]
[1728851812192,7.40291396,2460.4,2460.3,0.00812694]
[1728851832215,6.35605368,2460.4,2460.3,0.00812694]
[1728851832419,6.35605368,2460.4,2460.3,0.10454129]
[1728851832633,0.01219785,2460.4,2460.3,0.82282694]
[1728851832791,0.01219785,2460.4,2460.3,0.91928069]
[1728851836758,0.01219785,2460.4,2460.3,4.98382069]
[1728851836903,0.01219785,2460.4,2460.3,6.03885834]
[1728851837104,0.01219785,2460.4,2460.3,6.58885834]
[1728851841521,0.01219785,2460.4,2460.3,8.09073417]
[1728851842042,0.01219785,2460.4,2460.3,8.79597599]
[1728851842257,0.01219785,2460.4,2460.3,9.8538049]
[1728851842557,0.01219785,2460.4,2460.3,10.28548121]
[1728851843658,0.01219785,2460.4,2460.3,11.13911356]
[1728851844617,0.01219785,2460.4,2460.3,11.139106]
[1728851844822,0.01219785,2460.4,2460.3,11.44354684]
[1728851845128,0.01219785,2460.4,2460.3,11.1389868]
[1728851845519,0.01219785,2460.4,2460.3,11.55200158]
[1728851846122,4.13354023,2461.4,2460.8,4.06358]
[1728851846455,4.0629,2461.3,2460.9,5.639593]
[1728851846615,4.0629,2461.3,2460.9,5.73466854]
[1728851847460,5.63541606,2461.4,2460.9,5.73466854]
[1728851847461,9.69827606,2461.4,2460.9,5.73466854]
[1728851847620,4.06289,2461.3,2460.9,5.73466854]
[1728851848020,4.06289,2461.3,2460.9,7.23654437]
[1728851848263,0.07072023,2461.4,2460.9,11.29990437]
[1728851848264,4.13346023,2461.4,2460.9,11.29990437]
[1728851848618,4.13346023,2461.4,2460.9,7.23644437]
[1728851848964,0.01219339,2461.0,2460.9,5.47182554]
[1728851849161,0.01219339,2461.0,2460.9,5.5612153]
[1728851850170,0.01219339,2461.0,2460.9,7.06309113]
[1728851851255,0.01219339,2461.0,2460.9,7.0630911]
[1728851851463,0.01219339,2461.0,2460.9,6.98182831]
[1728851851670,0.01219339,2461.0,2460.9,8.08637914]
[1728851855473,0.01219339,2461.0,2460.9,6.58450331]
[1728851855639,0.01219339,2461.0,2460.9,1.41650248]
[1728851855986,0.01219339,2461.0,2460.9,0.65320248]
[1728851859293,4.07557339,2461.0,2460.9,0.10320248]
[1728851861382,0.01219339,2461.0,2460.9,0.10320248]
[1728851862085,4.07557339,2461.0,2460.9,0.10320248]
[1728851866355,0.01219339,2461.0,2460.9,0.10320248]
[1728851889416,0.01219339,2461.0,2460.9,0.80984803]
[1728851890312,0.01219339,2461.0,2460.9,1.11507265]
[1728851890853,4.07557339,2461.0,2460.9,1.11507265]
[1728851893036,0.01219339,2461.0,2460.9,1.1151747]
[1728851893239,0.01219339,2461.0,2460.9,1.24243136]
[1728851894060,0.01219339,2461.0,2460.9,1.24243118]
[1728851894281,0.01219339,2461.0,2460.9,3.68642082]
[1728851896136,0.01219339,2461.0,2460.9,8.60360317]
[1728851896341,0.01219339,2461.0,2460.9,7.74997082]
[1728851896869,0.01219339,2461.0,2460.9,7.70397877]
[1728851897035,0.01219339,2461.0,2460.9,8.29996361]
[1728851897373,0.01219339,2461.0,2460.9,9.15359636]
[1728851899060,0.01219339,2461.0,2460.9,11.34741181]
[1728851899332,0.01219339,2461.0,2460.9,11.34741018]
[1728851900053,0.01219339,2461.0,2460.9,11.14381905]
[1728851900567,0.01219339,2461.0,2460.9,11.01656938]
[1728851900773,0.01219339,2461.0,2460.9,10.65541999]
[1728851901071,0.01219339,2461.0,2460.9,11.14370791]
[1728851901964,0.01219339,2461.0,2460.9,11.34725455]
[1728851902404,0.01219339,2461.0,2460.9,11.34660431]
[1728851904283,0.01219339,2461.0,2460.9,11.1430159]
[1728851904487,0.01219339,2461.0,2460.9,10.349588]
[1728851904659,0.01219339,2461.0,2460.9,11.14286142]
[1728851904864,0.01219339,2461.0,2460.9,11.14286181]
[1728851905399,0.01219339,2461.0,2460.9,11.14284405]
[1728851906207,0.01219339,2461.0,2460.9,10.65469421]
[1728851906350,0.01219339,2461.0,2460.9,10.65434792]
[1728851907191,0.01219339,2461.0,2460.9,9.15247013]
[1728851910491,0.01219339,2461.0,2460.9,8.29883778]
[1728851911700,0.01219339,2461.0,2460.9,6.53299238]
[1728851911897,0.01219339,2461.0,2460.9,8.17152228]
[1728851912063,0.01219339,2461.0,2460.9,8.29872687]
[1728851914209,0.01219339,2461.0,2460.9,9.8006027]
[1728851915298,0.01219339,2461.0,2460.9,10.65423505]
[1728851916207,0.01219339,2461.0,2460.9,10.22192467]
[1728851916365,0.01219339,2461.0,2460.9,8.88844929]
[1728851916570,0.01219339,2461.0,2460.9,10.65413267]
[1728851918164,0.01219339,2461.0,2460.9,10.65411567]
[1728851919698,0.01219339,2461.0,2460.9,10.65410428]
[1728851926075,0.01219339,2461.0,2460.9,10.65402882]
[1728851927402,0.01219339,2461.0,2460.9,8.7198691]
[1728851927607,0.01219339,2461.0,2460.9,9.15214814]
[1728851927918,0.01219339,2461.0,2460.9,9.15214725]
[1728851930927,0.01219339,2461.0,2460.9,8.84711078]
[1728851931218,0.01219339,2461.0,2460.9,9.15216502]
[1728851932381,0.01219339,2461.0,2460.9,10.65404085]
[1728851933280,0.01219339,2461.0,2460.9,9.15216502]
[1728851933996,0.01219339,2461.0,2460.9,4.47262167]
[1728851934183,0.01219339,2461.0,2460.9,3.15472167]
[1728851934386,4.87727339,2461.0,2460.9,2.30108932]
[1728851934708,4.87727339,2461.0,2460.9,0.53556961]
[1728851935024,4.87727339,2461.0,2460.9,0.10320248]
[1728851938420,4.87727339,2461.0,2460.9,0.10320248]
[1728851941139,0.81389339,2461.0,2460.9,0.10320248]
[1728851941433,0.01219339,2461.0,2460.9,0.10320248]
[1728851944214,4.07557339,2461.0,2460.9,0.10320248]
[1728851944408,4.87637339,2461.0,2460.9,0.10320248]
[1728851944735,0.81299339,2461.0,2460.9,0.10320248]
[1728851956126,0.01219339,2461.0,2460.9,0.10320248]
[1728851956668,0.01219339,2461.0,2460.9,5.45080955]